bitfinex-derivatives/quotes_BTCF0:USTF0_20251103
["timestamp","ask_amount","ask_price","bid_price","bid_amount"]
[1762174213389,0.15566361,108010.0,108000.0,0.4705676]
[1762174213686,0.01019366,108010.0,108000.0,0.4705676]
[1762174213890,0.001,108010.0,108000.0,0.98217143]
[1762174214588,0.001,108010.0,108000.0,0.93213755]
[1762174215283,0.001,108010.0,108000.0,0.88115993]
[1762174216191,0.001,108010.0,108000.0,0.8313676]
[1762174216391,0.001,108010.0,108000.0,0.88116128]
[1762174217286,0.001,108010.0,108000.0,0.9810676]
[1762174217483,0.4055,108030.0,108020.0,0.1427805]
[1762174217685,0.4055,108030.0,108020.0,0.4623005]
[1762174217892,0.0447,108030.0,108020.0,0.4623005]
[1762174218893,0.0537,108030.0,108020.0,0.4623005]
[1762174219890,0.0537,108030.0,108020.0,0.36971]
[1762174220491,0.26079185,108030.0,108020.0,0.36971]
[1762174220893,0.26998554,108030.0,108020.0,0.36971]
[1762174221495,0.26998554,108030.0,108020.0,0.4623005]
[1762174222398,0.63078554,108030.0,108020.0,0.04521]
[1762174222597,0.65273364,108030.0,108020.0,0.4573203]
[1762174224596,0.77844161,108030.0,108020.0,0.4573203]
[1762174224789,0.77844161,108030.0,108020.0,0.4572803]
[1762174227396,0.77844161,108030.0,108020.0,0.36469]
[1762174227791,0.77844161,108030.0,108020.0,0.4572803]
[1762174229397,0.77544161,108030.0,108020.0,0.4572803]
[1762174230688,0.76944161,108030.0,108020.0,0.4572803]
[1762174231589,0.67685971,108030.0,108020.0,0.4572803]
[1762174231895,0.76944141,108030.0,108020.0,0.4572803]
[1762174234791,0.76944141,108030.0,108020.0,0.36469]
[1762174235096,0.76944141,108030.0,108020.0,0.4572803]
[1762174236303,0.76944141,108030.0,108020.0,0.36469]
[1762174238104,0.76944141,108030.0,108020.0,0.4572804]
[1762174238299,0.56362075,108030.0,108020.0,0.4703904]
[1762174238503,0.54988075,108030.0,108020.0,0.4703904]
[1762174239206,0.64246255,108030.0,108020.0,0.4703904]
[1762174239604,0.28166255,108030.0,108020.0,0.4703904]
[1762174239995,0.16713265,108030.0,108020.0,0.52018684]
[1762174240300,0.16713265,108030.0,108020.0,0.6334258]
[1762174240703,0.16713265,108030.0,108020.0,0.52018684]
[1762174241705,0.60963226,108040.0,108030.0,0.1488219]
[1762174241900,0.63162895,108040.0,108030.0,0.1488219]
[1762174242305,0.64464895,108040.0,108030.0,0.19861834]
[1762174243401,0.64464895,108040.0,108030.0,0.09292644]
[1762174243708,0.64664895,108040.0,108030.0,0.50494844]
[1762174244104,0.65606691,108040.0,108030.0,0.50494844]
[1762174245210,0.65906691,108040.0,108030.0,0.50494844]
[1762174245901,0.65406691,108040.0,108030.0,0.50494844]
[1762174246102,0.65406691,108040.0,108030.0,0.50894844]
[1762174246694,0.65406691,108040.0,108030.0,0.18950834]
[1762174247011,0.65406691,108040.0,108030.0,0.50894834]
[1762174247401,0.65406691,108040.0,108030.0,0.4591519]
[1762174251310,0.54082795,108040.0,108030.0,0.4591519]
[1762174251499,0.65406691,108040.0,108030.0,0.4591519]
[1762174253203,0.65406691,108040.0,108030.0,0.36657]
[1762174253404,0.76730587,108040.0,108030.0,0.004]
[1762174254412,0.76730587,108040.0,108030.0,0.096582]
[1762174254808,0.76730587,108040.0,108030.0,0.004]
[1762174255711,0.76730587,108040.0,108030.0,0.003]
[1762174256105,1.08670587,108040.0,108030.0,0.003]
[1762174256506,0.149642,108030.0,108020.0,0.50587094]
[1762174256713,0.73691992,108030.0,108020.0,0.50587094]
[1762174257812,0.73691992,108030.0,108020.0,0.50887094]
[1762174259116,0.73691992,108030.0,108020.0,0.50987094]
[1762174259615,0.75892447,108030.0,108020.0,0.50987094]
[1762174261022,0.75892447,108030.0,108020.0,0.52262094]
[1762174261317,0.64568551,108030.0,108020.0,0.50987094]
[1762174261510,0.75892447,108030.0,108020.0,0.50987094]
[1762174264416,0.75892447,108030.0,108020.0,0.50987684]
[1762174265215,0.75892447,108030.0,108020.0,0.07571644]
[1762174265414,0.75892447,108030.0,108020.0,0.004]
[1762174266014,0.75892447,108030.0,108020.0,0.02522]
[1762174266215,1.07832447,108030.0,108020.0,0.004]
[1762174266612,1.07832447,108030.0,108020.0,0.003]
[1762174266812,0.1488704,108020.0,108010.0,0.50514504]
[1762174267015,0.64491391,108020.0,108010.0,0.50514504]
[1762174268011,0.75815287,108020.0,108010.0,0.003]
[1762174268215,0.148879,108010.0,108000.0,0.04979644]
[1762174268415,0.1488875,108000.0,107990.0,0.41254644]
[1762174268611,0.73616542,108000.0,107990.0,0.50516254]
[1762174268825,0.73616542,108000.0,107990.0,0.41254644]
[1762174269009,0.73616542,108000.0,107990.0,0.18576254]
[1762174270320,0.73616542,108000.0,107990.0,0.18676254]
[1762174270624,0.73616542,108000.0,107990.0,0.18776254]
[1762174274330,0.41708,108000.0,107990.0,0.18776254]
[1762174274531,0.73616552,108000.0,107990.0,0.18776254]
[1762174275130,0.72308552,108000.0,107990.0,0.20051254]
[1762174275330,0.73616552,108000.0,107990.0,0.20051254]
[1762174275822,0.73616552,108000.0,107990.0,0.18776254]
[1762174276732,0.64355792,108000.0,107990.0,0.18776254]
[1762174276926,0.73616552,108000.0,107990.0,0.18776254]
[1762174281424,0.62292656,108000.0,107990.0,0.18776254]
[1762174282433,0.73616552,108000.0,107990.0,0.18776254]
[1762174284931,0.64355792,108000.0,107990.0,0.18776254]
[1762174285131,0.53031896,108000.0,107990.0,0.18776254]
[1762174286339,0.5177818,108000.0,107990.0,0.18776254]
[1762174286740,0.6103895,108000.0,107990.0,0.18776254]
[1762174289440,0.5177818,108000.0,107990.0,0.18776254]
[1762174290042,0.6103895,108000.0,107990.0,0.18776254]
[1762174293145,0.6103895,108000.0,107990.0,0.1379661]
[1762174294444,0.6103895,108000.0,107990.0,0.0946161]
[1762174297143,0.6103895,108000.0,107990.0,0.1611234]
[1762174298052,0.6103895,108000.0,107990.0,0.2052034]
[1762174302359,0.6103895,108000.0,107990.0,0.1386961]
[1762174303769,0.6103895,108000.0,107990.0,0.1386963]
[1762174303968,0.6103895,108000.0,107990.0,0.2052036]
[1762174305363,0.6103895,108000.0,107990.0,0.1386963]
[1762174305761,0.6103895,108000.0,107990.0,0.2052036]
[1762174305762,0.5177818,108000.0,107990.0,0.2052036]
[1762174305966,0.6103896,108000.0,107990.0,0.2052036]
[1762174306165,0.5177818,108000.0,107990.0,0.2052036]
[1762174306668,0.6103896,108000.0,107990.0,0.2052036]
[1762174309672,0.5177818,108000.0,107990.0,0.2052036]
[1762174310570,0.6103896,108000.0,107990.0,0.2052036]
[1762174310767,0.6103896,108000.0,107990.0,0.1386963]
[1762174312274,0.5177818,108000.0,107990.0,0.1386963]
[1762174312474,0.5177818,108000.0,107990.0,0.2052036]
[1762174315477,0.5177818,108000.0,107990.0,0.1386963]
[1762174318974,0.05628,108000.0,107990.0,0.1513463]
[1762174319164,0.0432,108000.0,107990.0,0.2178536]
[1762174320080,0.0432,108000.0,107990.0,0.1513463]
[1762174321475,0.0432,108000.0,107990.0,0.1523463]
[1762174321779,0.0432,108000.0,107990.0,0.5161463]
[1762174322187,0.05695,108000.0,107990.0,0.5161463]
[1762174322370,0.1576518,108000.0,107990.0,0.1426963]
[1762174322578,0.6110597,108000.0,107990.0,0.1426963]
[1762174323082,0.5184518,108000.0,107990.0,0.1426963]
[1762174323579,0.63315218,108000.0,107990.0,0.1426963]
[1762174324083,0.54054418,108000.0,107990.0,0.1426963]
[1762174324988,0.54054418,108000.0,107990.0,0.4620963]
[1762174325483,0.5184518,108000.0,107990.0,0.4620963]
[1762174326883,0.54054381,108000.0,107990.0,0.4620963]
[1762174327180,0.1576518,108000.0,107990.0,0.4620963]
[1762174331293,0.05695,108000.0,107990.0,0.4747463]
[1762174331593,0.05695,108000.0,107990.0,0.5412536]
[1762174332189,0.0432,108000.0,107990.0,0.5412536]
[1762174332691,0.04535,108010.0,108000.0,0.1479678]
[1762174332987,0.37388,108020.0,108000.0,0.1479678]
[1762174332988,0.02256,108020.0,108010.0,0.1479592]
[1762174333188,0.04535,108020.0,108010.0,0.53388017]
[1762174333589,0.04535,108020.0,108010.0,0.63458197]
[1762174333795,0.40615,108030.0,108020.0,0.1451905]
[1762174334398,0.40615,108030.0,108020.0,0.19502291]
[1762174334697,0.40615,108030.0,108020.0,0.1451905]
[1762174335498,0.40615,108030.0,108020.0,0.19499373]
[1762174336096,0.40615,108030.0,108020.0,0.19599373]
[1762174337499,0.41115,108030.0,108020.0,0.19599373]
[1762174339300,0.503732,108030.0,108020.0,0.19599373]
[1762174339990,0.498732,108030.0,108020.0,0.19599373]
[1762174340191,0.498732,108030.0,108020.0,0.19699373]
[1762174342002,0.512482,108030.0,108020.0,0.19699373]
[1762174343900,0.6131838,108030.0,108020.0,0.18710373]
[1762174344107,0.6131838,108030.0,108010.0,0.04980323]
[1762174344108,0.1501502,108020.0,108010.0,0.04980323]
[1762174344411,0.1501588,108010.0,108000.0,0.46169063]
[1762174344601,0.2508606,108010.0,108000.0,0.4335574]
[1762174345808,0.2508606,108010.0,108000.0,0.4553274]
[1762174346603,0.6116606,108010.0,108000.0,0.4553274]
[1762174347204,0.6116606,108010.0,108000.0,0.4563274]
[1762174347410,0.6116606,108010.0,108000.0,0.4573274]
[1762174348314,0.62423986,108010.0,108000.0,0.4573274]
[1762174348615,0.62423986,108010.0,108000.0,0.36472]
[1762174348920,0.96900092,108010.0,108000.0,0.002]
[1762174349418,0.73752092,108010.0,108000.0,0.002]
[1762174350413,0.73752092,108010.0,108000.0,0.001]
[1762174350614,0.73852092,108010.0,108000.0,0.001]
[1762174351420,0.1498274,108000.0,107990.0,0.50519903]
[1762174351616,0.73718952,108000.0,107990.0,0.50519903]
[1762174352706,0.73718952,108000.0,107990.0,0.50619903]
[1762174352916,0.73718952,108000.0,107990.0,0.4563958]
[1762174353121,0.73718952,108000.0,107990.0,0.001]
[1762174358619,0.73718952,108000.0,107990.0,0.0936159]
[1762174358818,0.73718952,108000.0,107990.0,0.1152259]
[1762174359220,0.73718952,108000.0,107990.0,0.02261]
[1762174359523,0.73718952,108000.0,107990.0,0.115226]
[1762174359921,0.73718952,108000.0,107990.0,0.02261]
[1762174360323,0.73718952,108000.0,107990.0,0.001]
[1762174360721,0.73718952,108000.0,107990.0,0.093616]
[1762174360921,0.73718952,108000.0,107990.0,0.115226]
[1762174361515,0.73718952,108000.0,107990.0,0.093616]
[1762174362826,0.73718952,108000.0,107990.0,0.001]
[1762174363825,0.73718952,108000.0,107990.0,0.093616]
[1762174365224,0.73718952,108000.0,107990.0,0.001]
[1762174366123,0.73718952,108000.0,107990.0,0.137916]
[1762174366432,0.73718952,108000.0,107990.0,0.001]
[1762174371031,0.73718952,108000.0,107990.0,0.0936159]
[1762174371232,0.75922967,108000.0,107990.0,0.0936159]
[1762174371731,0.73718952,108000.0,107990.0,0.0936159]
[1762174371930,0.73718952,108000.0,107990.0,0.001]
[1762174372233,0.75922967,108000.0,107990.0,0.001]
[1762174373333,0.75922967,108000.0,107990.0,0.0936159]
[1762174373925,0.75922967,108000.0,107990.0,0.001]
[1762174375535,0.75922967,108000.0,107990.0,0.093616]
[1762174376334,0.75922967,108000.0,107990.0,0.137286]
[1762174380038,0.75922967,108000.0,107990.0,0.18708923]
[1762174382335,0.55334121,108000.0,107990.0,0.18708923]
[1762174382538,0.53130106,108000.0,107990.0,0.150676]
[1762174385334,0.41802,108000.0,107990.0,0.150676]
[1762174385544,0.53130106,108000.0,107990.0,0.150676]
[1762174385743,0.41802,108000.0,107990.0,0.150676]
[1762174385935,0.53130106,108000.0,107990.0,0.150676]
[1762174386241,0.62390846,108000.0,107990.0,0.150676]
[1762174386638,0.53130106,108000.0,107990.0,0.150676]
[1762174386837,0.17050106,108000.0,107990.0,0.150676]
[1762174390847,0.26310846,108000.0,107990.0,0.137286]
[1762174391745,0.17050106,108000.0,107990.0,0.137286]
[1762174394343,0.17050106,108000.0,107990.0,0.25056706]
[1762174394845,0.17050106,108000.0,107990.0,0.137286]
[1762174395240,0.17050106,108000.0,107990.0,0.150676]
[1762174396045,0.17050106,108000.0,107990.0,0.26395706]
[1762174397542,0.17050106,108000.0,107990.0,0.150676]
[1762174399041,0.26310826,108000.0,107990.0,0.150676]
[1762174399239,0.26310826,108000.0,107990.0,0.137286]
[1762174400837,0.62390826,108000.0,107990.0,0.137286]
[1762174402849,0.62390826,108000.0,107990.0,0.136286]
[1762174403049,0.62390826,108000.0,107990.0,0.140286]
[1762174403648,0.62390826,108000.0,107990.0,0.142286]
[1762174404557,0.53130106,108000.0,107990.0,0.142286]
[1762174405552,0.62390776,108000.0,107990.0,0.142286]
[1762174408247,0.73718882,108000.0,107990.0,0.05590669]
[1762174408446,0.75920167,108000.0,107990.0,0.02090669]
[1762174409450,0.1373153,107990.0,107980.0,0.4118582]
[1762174409651,0.61139636,107990.0,107980.0,0.4118582]
[1762174410150,0.61139636,107990.0,107980.0,0.4347182]
[1762174410351,0.1448439,107980.0,107970.0,0.1373607]
[1762174410556,0.60639078,107980.0,107970.0,0.4566007]
[1762174411751,0.60639078,107980.0,107970.0,0.36397]
[1762174412658,0.1502025,107970.0,107960.0,0.20392557]
[1762174412859,0.26018577,107970.0,107960.0,0.52316557]
[1762174413357,0.26018577,107970.0,107960.0,0.4566046]
[1762174414052,0.26018577,107970.0,107960.0,0.4606046]
[1762174414456,0.62098577,107970.0,107960.0,0.4606046]
[1762174415452,0.62098577,107970.0,107960.0,0.04873]
[1762174415648,0.62098577,107970.0,107960.0,0.4606511]
[1762174416147,0.62098577,107970.0,107960.0,0.4686511]
[1762174416348,0.62098577,107970.0,107960.0,0.012]
[1762174416545,0.62098577,107970.0,107960.0,0.33128]
[1762174416860,0.62098577,107970.0,107960.0,0.4239211]
[1762174417160,0.62098577,107970.0,107960.0,0.35414]
[1762174419656,0.26018577,107970.0,107960.0,0.35414]
[1762174419852,0.62098577,107970.0,107960.0,0.35414]
[1762174421257,0.62098577,107970.0,107960.0,0.468651]
[1762174421462,0.62098577,107970.0,107960.0,0.482531]
[1762174427859,0.60811577,107970.0,107960.0,0.482531]
[1762174430165,0.60811577,107970.0,107960.0,0.53231918]
[1762174431865,0.60811577,107970.0,107960.0,0.43967818]
[1762174432475,0.60811577,107970.0,107960.0,0.53231918]
[1762174433076,0.50736889,107970.0,107960.0,0.53231918]
[1762174433375,0.41473639,107970.0,107960.0,0.53231918]
[1762174433677,0.50736879,107970.0,107960.0,0.53231918]
[1762174435076,0.41473639,107970.0,107960.0,0.53231918]
[1762174436675,0.41473639,107970.0,107960.0,0.482531]
[1762174437375,0.50736889,107970.0,107960.0,0.482531]
[1762174438877,0.41473639,107970.0,107960.0,0.482531]
[1762174439673,0.50736879,107970.0,107960.0,0.482531]
[1762174440275,0.60811567,107970.0,107960.0,0.482531]
[1762174441183,0.64317233,107970.0,107960.0,0.40409789]
[1762174441386,0.1362895,107950.0,107940.0,0.10613808]
[1762174441673,0.60663638,107950.0,107940.0,0.43367808]
[1762174441975,0.60663638,107950.0,107940.0,0.04783711]
[1762174442173,0.60663638,107950.0,107940.0,0.36711711]
[1762174442369,0.62915566,107950.0,107940.0,0.36711711]
[1762174442575,0.60663638,107950.0,107940.0,0.36711711]
[1762174442775,0.96743638,107950.0,107940.0,0.36711711]
[1762174442972,0.98994312,107950.0,107940.0,0.03318711]
[1762174443171,1.30922312,107950.0,107940.0,0.01005711]
[1762174443673,1.30922312,107950.0,107940.0,0.00705711]
[1762174444081,1.30922312,107950.0,107940.0,0.01705711]
[1762174444380,1.54082312,107950.0,107940.0,0.01705711]
[1762174444580,1.30922312,107950.0,107940.0,0.01705711]
[1762174445180,1.30922312,107950.0,107940.0,0.00805711]
[1762174449083,1.30922312,107950.0,107940.0,0.12384641]
[1762174449385,1.30922312,107950.0,107940.0,0.00805711]
[1762174452388,1.28671638,107950.0,107940.0,0.00805711]
[1762174453792,0.05158,107940.0,107930.0,0.0360579]
[1762174453980,0.51312688,107940.0,107930.0,0.0360579]
[1762174455078,0.51312688,107940.0,107930.0,0.0400579]
[1762174455284,0.51312688,107940.0,107930.0,0.0470579]
[1762174457789,0.51312688,107940.0,107930.0,0.0918379]
[1762174458393,0.58887265,107940.0,107930.0,0.0918379]
[1762174458992,0.58887265,107940.0,107930.0,0.1845059]
[1762174459391,0.58887265,107940.0,107930.0,0.1977259]
[1762174459590,0.58093265,107940.0,107930.0,0.1977259]
[1762174460395,0.58093265,107940.0,107930.0,0.1050579]
[1762174461397,0.58093265,107940.0,107930.0,0.1977258]
[1762174461895,0.58093265,107940.0,107930.0,0.1050579]
[1762174462080,2.08093265,107940.0,107930.0,0.1050579]
[1762174462280,2.17359205,107940.0,107930.0,0.1050579]
[1762174463088,2.17359205,107940.0,107930.0,0.1977259]
[1762174463991,2.17359205,107940.0,107930.0,0.1050579]
[1762174464197,2.18153205,107940.0,107930.0,0.1050579]
[1762174466001,2.18153205,107940.0,107930.0,0.1977258]
[1762174466188,2.07284517,107940.0,107930.0,0.1977258]
[1762174466497,2.17359205,107940.0,107930.0,0.1977258]
[1762174466794,2.19608019,107940.0,107930.0,0.1977258]
[1762174467894,2.20402019,107940.0,107930.0,0.0918379]
[1762174470290,2.33016761,107940.0,107930.0,0.0918379]
[1762174470791,0.150078,107930.0,107920.0,0.06619347]
[1762174470991,0.1500866,107920.0,107910.0,0.07783779]
[1762174471288,0.76031131,107920.0,107910.0,0.03299779]
[1762174471696,0.76031131,107920.0,107910.0,0.05599779]
[1762174472400,0.75837927,107920.0,107910.0,0.05599779]
[1762174473000,0.75837927,107920.0,107910.0,0.05899779]
[1762174473705,0.75837927,107920.0,107910.0,0.08083779]
[1762174473886,0.75837927,107920.0,107910.0,0.08783779]
[1762174474289,0.75837927,107920.0,107910.0,0.04299779]
[1762174474998,0.75837927,107920.0,107910.0,0.15868299]
[1762174475198,0.75837927,107920.0,107910.0,0.18052299]
[1762174475398,0.75837927,107920.0,107910.0,0.08783779]
[1762174475597,0.75837927,107920.0,107910.0,0.17752299]
[1762174475802,0.76337927,107920.0,107910.0,0.17752299]
[1762174477001,0.63717212,107920.0,107910.0,0.19126299]
[1762174478505,0.61464171,107920.0,107910.0,0.19126299]
[1762174478703,0.61464171,107920.0,107910.0,0.18426299]
[1762174479003,0.61964171,107920.0,107910.0,0.18426299]
[1762174481307,0.52896511,107920.0,107910.0,0.18426299]
[1762174481806,0.62164161,107920.0,107910.0,0.18426299]
[1762174484808,0.52896511,107920.0,107910.0,0.18426299]
[1762174485408,0.62164171,107920.0,107910.0,0.18426299]
[1762174495014,0.26084171,107920.0,107910.0,0.18426299]
[1762174495218,0.62164171,107920.0,107910.0,0.18426299]
[1762174497011,0.52896511,107920.0,107910.0,0.18426299]
[1762174497411,0.62164171,107920.0,107910.0,0.18426299]
[1762174500323,0.62164171,107920.0,107910.0,0.25082396]
[1762174500622,0.63440171,107920.0,107910.0,0.25082396]
[1762174500824,0.63440171,107920.0,107910.0,0.18426299]
[1762174502130,0.52896511,107920.0,107910.0,0.18426299]
[1762174502424,0.62164171,107920.0,107910.0,0.18426299]
[1762174505216,0.52896511,107920.0,107910.0,0.18426299]
[1762174505425,0.55151218,107920.0,107910.0,0.18426299]
[1762174506020,0.52896511,107920.0,107910.0,0.25082396]
[1762174507514,0.62164171,107920.0,107910.0,0.25082396]
[1762174507719,0.01006796,107920.0,107910.0,0.25082396]
[1762174507918,0.01006796,107920.0,107910.0,0.38084821]
[1762174508228,0.14570511,107920.0,107910.0,0.38084821]
[1762174508428,0.05540796,107920.0,107910.0,0.26740106]
[1762174508727,0.16885511,107920.0,107910.0,0.38084821]
[1762174510131,0.16885511,107920.0,107910.0,0.44753322]
[1762174510330,0.16885511,107920.0,107910.0,0.36439515]
[1762174511421,0.16585511,107920.0,107910.0,0.36439515]
[1762174512230,0.16385511,107920.0,107910.0,0.36439515]
[1762174512432,0.16585511,107920.0,107910.0,0.36439515]
[1762174512634,0.16485511,107920.0,107910.0,0.36439515]
[1762174513133,0.16085511,107920.0,107910.0,0.36439515]
[1762174513432,0.16485511,107920.0,107910.0,0.36439515]
[1762174517144,0.16485511,107920.0,107910.0,0.68371515]
[1762174517541,0.52565511,107920.0,107910.0,0.570268]
[1762174517933,0.74453896,107920.0,107910.0,0.07783779]
[1762174518337,0.74453896,107920.0,107910.0,0.39715779]
[1762174518939,0.74453896,107920.0,107910.0,0.48984299]
[1762174520047,0.74453896,107920.0,107910.0,0.39715779]
[1762174520749,0.74453896,107920.0,107910.0,0.48984299]
[1762174520945,0.74453896,107920.0,107910.0,0.39715779]
[1762174522138,1.10533896,107920.0,107910.0,0.39715779]
[1762174522951,1.10533896,107920.0,107910.0,0.48984299]
[1762174524647,1.10533896,107920.0,107910.0,0.39715779]
[1762174524852,1.10533896,107920.0,107910.0,0.03299779]
[1762174525051,1.10533896,107920.0,107910.0,0.35231779]
[1762174527958,1.10533896,107920.0,107910.0,0.03299779]
[1762174528153,1.12783037,107920.0,107910.0,0.03299779]
[1762174528752,1.10533896,107920.0,107910.0,0.03299779]
[1762174529754,1.12782222,107920.0,107910.0,0.03299779]
[1762174529953,1.12782222,107920.0,107900.0,0.07338861]
[1762174529954,0.1370552,107910.0,107900.0,0.07338861]
[1762174530257,0.74730072,107910.0,107900.0,0.07338861]
[1762174531351,0.97898072,107910.0,107900.0,0.07338861]
[1762174531558,0.97898072,107910.0,107880.0,0.07377446]
[1762174531559,0.3185882,107900.0,107880.0,0.07377446]
[1762174531857,1.26788226,107890.0,107880.0,0.02265164]
[1762174532460,1.14193113,107890.0,107880.0,0.02265164]
[1762174532661,1.14193113,107890.0,107880.0,0.06730164]
[1762174533058,1.21789738,107890.0,107880.0,0.06730164]
[1762174533260,1.21789738,107890.0,107880.0,0.16001274]
[1762174533458,1.21789738,107890.0,107880.0,0.06730164]
[1762174533762,1.21789738,107890.0,107880.0,0.04465164]
[1762174533962,1.21789738,107890.0,107880.0,0.06730164]
[1762174534260,1.22711208,107890.0,107880.0,0.07130164]
[1762174534764,1.22711208,107890.0,107880.0,0.02665164]
[1762174535152,1.45883208,107890.0,107880.0,0.02665164]
[1762174535353,1.56077525,107890.0,107880.0,0.01176164]
[1762174536057,1.56070729,107890.0,107880.0,0.01176164]
[1762174536257,1.56070729,107890.0,107880.0,0.00976164]
[1762174536462,1.56170729,107890.0,107880.0,0.01176164]
[1762174536864,1.58411299,107890.0,107870.0,0.0304036]
[1762174537055,0.7944743,107880.0,107860.0,0.11425134]
[1762174537257,0.78149113,107870.0,107860.0,0.11425134]
[1762174537757,0.78149113,107870.0,107860.0,0.13690134]
[1762174538160,1.01325113,107870.0,107860.0,0.07936134]
[1762174538355,1.01318317,107870.0,107860.0,0.07936134]
[1762174538556,0.78142317,107870.0,107860.0,0.13690134]
[1762174538758,0.46181113,107870.0,107860.0,0.22962964]
[1762174539065,0.46181113,107870.0,107860.0,0.23362964]
[1762174539066,0.78145113,107870.0,107860.0,0.23362964]
[1762174539265,0.46181113,107870.0,107860.0,0.23362964]
[1762174539469,0.46281113,107870.0,107860.0,0.23662964]
[1762174540363,0.55553083,107870.0,107860.0,0.23662964]
[1762174540565,0.46281113,107870.0,107860.0,0.23462964]
[1762174541066,0.46281113,107870.0,107860.0,0.23062964]
[1762174541262,0.55553083,107870.0,107860.0,0.23262964]
[1762174542772,0.46281113,107870.0,107860.0,0.23262964]
[1762174544470,0.55553083,107870.0,107860.0,0.23262964]
[1762174544670,0.46281113,107870.0,107860.0,0.23262964]
[1762174545276,0.55553083,107870.0,107860.0,0.23262964]
[1762174547166,0.46281113,107870.0,107860.0,0.23262964]
[1762174547469,0.55553083,107870.0,107860.0,0.23262964]
[1762174550269,0.55653083,107870.0,107860.0,0.23262964]
[1762174551086,0.55753083,107870.0,107860.0,0.23062964]
[1762174553171,0.55753083,107870.0,107860.0,0.13790134]
[1762174553377,0.55753083,107870.0,107860.0,0.45754134]
[1762174553969,0.87713083,107870.0,107860.0,0.09325134]
[1762174554175,1.10889083,107870.0,107860.0,0.09325134]
[1762174554370,0.87713083,107870.0,107860.0,0.09325134]
[1762174554572,0.89968741,107870.0,107860.0,0.09325134]
[1762174555381,1.13137945,107870.0,107860.0,0.08036134]
[1762174556173,1.13137945,107870.0,107860.0,0.04536134]
[1762174556378,0.0927283,107860.0,107850.0,0.0498056]
[1762174556577,0.57709539,107860.0,107850.0,0.0498056]
[1762174556772,0.57702805,107860.0,107850.0,0.0498056]
[1762174557582,0.57702805,107860.0,107850.0,0.0726456]
[1762174557981,0.80882805,107860.0,107850.0,0.0518056]
[1762174558881,0.83379827,107860.0,107850.0,0.0518056]
[1762174559579,0.83379827,107860.0,107850.0,0.0538056]
[1762174559779,0.83479827,107860.0,107850.0,0.0538056]
[1762174560175,0.868099,107860.0,107850.0,0.0538056]
[1762174560385,0.52642324,107850.0,107830.0,0.0528883]
[1762174560572,0.0927541,107830.0,107820.0,0.04525]
[1762174560773,0.57705385,107830.0,107820.0,0.05901]
[1762174561078,0.60196112,107830.0,107820.0,0.04997186]
[1762174561277,0.57716784,107830.0,107820.0,0.02713186]
[1762174561477,0.60207511,107830.0,107820.0,0.02713186]
[1762174561673,0.57716784,107830.0,107820.0,0.02713186]
[1762174561872,0.57716784,107830.0,107820.0,0.03813186]
[1762174562284,0.80900784,107830.0,107820.0,0.011]
[1762174562476,0.80889385,107830.0,107820.0,0.011]
[1762174562672,0.0927627,107820.0,107810.0,0.06273107]
[1762174562872,0.8970695,107820.0,107810.0,0.06273107]
[1762174563278,0.8970695,107820.0,107810.0,0.02613107]
[1762174563476,0.87451292,107820.0,107810.0,0.03989107]
[1762174563677,0.89705829,107820.0,107810.0,0.03989107]
[1762174563882,0.97176793,107820.0,107810.0,0.03989107]
[1762174564072,0.97176793,107820.0,107810.0,0.05289107]
[1762174564274,0.0877713,107810.0,107800.0,0.0816983]
[1762174564477,0.67300301,107810.0,107800.0,0.0816983]
[1762174564676,0.57205984,107810.0,107800.0,0.0816983]
[1762174565084,0.80397984,107810.0,107800.0,0.0816983]
[1762174565280,0.81715171,107810.0,107790.0,0.09035279]
[1762174565588,0.38334537,107810.0,107800.0,0.02676]
[1762174565897,1.05730006,107810.0,107800.0,0.1647899]
[1762174566176,0.73722006,107810.0,107800.0,0.1647899]
[1762174566380,1.05790006,107810.0,107800.0,0.07201]
[1762174566575,1.15984323,107810.0,107800.0,0.1647899]
[1762174567081,1.05890006,107810.0,107800.0,0.06101]
[1762174567277,1.16984323,107810.0,107800.0,0.06101]
[1762174567484,1.16984323,107810.0,107800.0,0.1537899]
[1762174567985,0.36787469,107810.0,107800.0,0.1557899]
[1762174568385,0.37487469,107810.0,107800.0,0.1557899]
[1762174568782,0.47581786,107810.0,107800.0,0.1557899]
[1762174571179,0.56858916,107810.0,107800.0,0.1557899]
[1762174571778,0.47581786,107810.0,107800.0,0.1557899]
[1762174572289,0.56858916,107810.0,107800.0,0.1557899]
[1762174574282,0.47581786,107810.0,107800.0,0.1557899]
[1762174574889,0.56858916,107810.0,107800.0,0.1557899]
[1762174575086,0.47581786,107810.0,107800.0,0.1557899]
[1762174575482,0.56858916,107810.0,107800.0,0.1557899]
[1762174578878,0.56858916,107810.0,107800.0,0.06301]
[1762174580181,0.99037233,107810.0,107800.0,0.0406]
[1762174580382,1.24484798,107810.0,107800.0,0.01776]
[1762174580693,0.0927799,107800.0,107790.0,0.09035279]
[1762174580895,0.65555364,107800.0,107790.0,0.09035279]
[1762174581085,0.46183057,107800.0,107790.0,0.09035279]
[1762174581290,0.46183057,107800.0,107790.0,0.18314129]
[1762174582192,0.3608874,107800.0,107790.0,0.50406129]
[1762174582491,8.74e-05,107800.0,107790.0,0.50406129]
[1762174582690,8.74e-05,107800.0,107790.0,0.86486129]
[1762174582992,0.0080874,107800.0,107790.0,0.50406129]
[1762174583185,0.1008673,107800.0,107790.0,0.50406129]
[1762174583387,0.0080874,107800.0,107790.0,0.50406129]
[1762174583694,0.0140874,107800.0,107790.0,0.50506129]
[1762174584592,0.1068672,107800.0,107790.0,0.50506129]
[1762174584789,0.4676672,107800.0,107790.0,0.50506129]
[1762174585184,0.3748874,107800.0,107790.0,0.50506129]
[1762174585390,0.0140874,107800.0,107790.0,0.50506129]
[1762174585591,0.0140874,107800.0,107790.0,0.86586129]
[1762174586595,0.0140874,107800.0,107790.0,0.50506129]
[1762174587498,0.3748874,107800.0,107790.0,0.50506129]
[1762174587802,0.4676672,107800.0,107790.0,0.50506129]
[1762174588691,0.64631266,107800.0,107790.0,0.18414129]
[1762174588995,0.64631266,107800.0,107790.0,0.50498129]
[1762174589303,0.66898719,107800.0,107790.0,0.50498129]
[1762174590007,0.66898719,107800.0,107790.0,0.18414129]
[1762174590300,0.64631266,107800.0,107790.0,0.50494129]
[1762174592102,0.66898274,107800.0,107790.0,0.09135279]
[1762174592297,0.60881151,107800.0,107790.0,0.09135279]
[1762174592501,0.60881151,107800.0,107790.0,0.18414129]
[1762174593602,0.49033738,107800.0,107790.0,0.18414129]
[1762174593805,0.60881161,107800.0,107790.0,0.18414129]
[1762174594100,0.58614153,107800.0,107790.0,0.18414129]
[1762174594506,0.60880419,107800.0,107790.0,0.18414129]
[1762174597107,0.58614153,107800.0,107790.0,0.18414129]
[1762174598213,0.58614153,107800.0,107790.0,0.09135279]
[1762174598396,0.60880459,107800.0,107790.0,0.09135279]
[1762174598711,0.60880459,107800.0,107790.0,0.18414119]
[1762174598907,0.60880459,107800.0,107790.0,0.09135279]